Workbook

Sheet External Grant Budget
A1: TIAA | B1: Course Release
A2: SERS | B2: Additonal Compensation
A3: Social Security | B3: SCUPA
A4: Medicare | B4: AFSCME
A5: OTHER | B5: N/A
B8: East Stroudsburg University
B9: Office of Sponsored Projects and Research | F9: Name of PI(s)
B10: Grant Budget Template | F10: Title of Grant Proposal
F11: Amount and estimated Period of Performance
F14: Year 1 | J14: Year 2 | N14: Year 3 | R14: Year 4 | V14: Year 5 | Z14: TOTAL
A15: PERSONNEL
B16: SALARIES & WAGES
B17: Position/Name | C17: Type of Compensation | D17: Hourly Rate | F17: Hours | H17: Total | J17: Hours | L17: Total | N17: Hours | P17: Total | R17: Hours | T17: Total | V17: Hours | X17: Total | Z17: Total | AB17: Notes:
B18: Example | C18: Additonal Compensation | D18: 25 | F18: 1 | H18: =ROUND(D18*F18,2) -> 25 | J18: 1 | L18: =ROUND((D18*J18)*1.03,2) -> 25.75 | N18: 1 | P18: =ROUND((D18*N18)*1.03*1.03,2) -> 26.52 | R18: 1 | T18: =ROUND((D18*R18)*1.03*1.03*1.03,2) -> 27.32 | V18: 1 | X18: =ROUND((D18*V18)*1.03*1.03*1.03*1.03,2) -> 28.14 | Z18: =H18+L18+P18+T18+X18 -> 132.73
H19: =ROUND(D19*F19,2) -> 0 | L19: =ROUND((D19*J19)*1.03,2) -> 0 | P19: =ROUND((D19*N19)*1.03*1.03,2) -> 0 | T19: =ROUND((D19*R19)*1.03*1.03*1.03,2) -> 0 | X19: =ROUND((D19*V19)*1.03*1.03*1.03*1.03,2) -> 0 | Z19: =H19+L19+P19+T19+X19 -> 0
H20: =ROUND(D20*F20,2) -> 0 | L20: =ROUND((D20*J20)*1.03,2) -> 0 | P20: =ROUND((D20*N20)*1.03*1.03,2) -> 0 | T20: 0 | X20: 0 | Z20: 0
H21: =ROUND(D21*F21,2) -> 0 | L21: =ROUND((D21*J21)*1.03,2) -> 0 | P21: =ROUND((D21*N21)*1.03*1.03,2) -> 0 | T21: 0 | X21: 0 | Z21: 0
H22: =ROUND(D22*F22,2) -> 0 | L22: =ROUND((D22*J22)*1.03,2) -> 0 | P22: =ROUND((D22*N22)*1.03*1.03,2) -> 0 | T22: 0 | X22: 0 | Z22: 0
B24: TOTAL SALARIES | H24: =SUM(H18:H23) -> 25 | L24: =SUM(L18:L22) -> 25.75 | P24: =SUM(P18:P22) -> 26.52 | T24: =SUM(T18:T22) -> 27.32 | X24: =SUM(X18:X22) -> 28.14 | Z24: =SUM(Z18:Z23) -> 132.73
B26: BENEFITS (pick from drop down box)
B27: Social Security | C27: =IF(B27="SERS",0.2483,IF(B27="PSERS",0.2057,IF(B27="TIAA",0.0929,IF(B27="Social Security",0.062,IF(B27="Medicare",0.0145,0))))) -> 0.062 | H27: =+$H$24*C27 -> 1.55 | L27: =+$L$24*C27 -> 1.5965 | P27: =+$P$24*C27 -> 1.64424 | T27: =+$T$24*C27 -> 1.69384 | X27: =+$X$24*C27 -> 1.74468 | Z27: =H27+L27+P27+T27+X27 -> 8.22926
B28: Medicare | C28: =IF(B28="SERS",0.2483,IF(B28="PSERS",0.2057,IF(B28="TIAA",0.0929,IF(B28="Social Security",0.062,IF(B28="Medicare",0.0145,0))))) -> 0.0145 | H28: =+$H$24*C28 -> 0.3625 | L28: =+$L$24*C28 -> 0.373375 | P28: =+$P$24*C28 -> 0.38454 | T28: =+$T$24*C28 -> 0.39614 | X28: =+$X$24*C28 -> 0.40803 | Z28: =H28+L28+P28+T28+X28 -> 1.924585
B29: TIAA | C29: 0.0929 | H29: 2.3225 | L29: =+$L$24*C29 -> 2.392175 | P29: =+$P$24*C29 -> 2.463708 | T29: 2.538028 | X29: 2.614206 | Z29: 12.330617
B30: OTHER | C30: 0 | H30: 0 | L30: =+$L$24*C30 -> 0 | P30: =+$P$24*C30 -> 0 | T30: 0 | X30: 0 | Z30: 0
B31: OTHER | H31: 0 | L31: =+$L$24*C31 -> 0 | P31: =+$P$24*C31 -> 0 | T31: 0 | X31: 0 | Z31: 0
B33: TOTAL BENEFITS | H33: =SUM(H27:H31) -> 4.235 | L33: =SUM(L27:L31) -> 4.36205 | P33: =SUM(P27:P31) -> 4.492488 | T33: =SUM(T27:T31) -> 4.628008 | X33: =SUM(X27:X31) -> 4.766916 | Z33: =SUM(Z27:Z31) -> 22.484462
A35: TOTAL PERSONNEL | H35: =H24+H33 -> 29.235 | L35: =L24+L33 -> 30.11205 | P35: =P24+P33 -> 31.012488 | T35: =T24+T33 -> 31.948008 | X35: =X24+X33 -> 32.906916 | Z35: =Z24+Z33 -> 155.214462
A37: OTHER EXPENSES
B38: PURCHASED SERVICES
B39: Printing | H39: 1 | L39: 1 | P39: 1 | T39: 1 | X39: 1 | Z39: =H39+L39+P39+T39+X39 -> 5
B40: Travel | Z40: =H40+L40+P40+T40+X40 -> 0
B41: Consultants | Z41: 0
Z42: 0
B43: TOTAL PURCHASED SERVICES | H43: =SUM(H39:H42) -> 1 | L43: =SUM(L39:L42) -> 1 | P43: =SUM(P39:P42) -> 1 | T43: =SUM(T39:T42) -> 1 | X43: =SUM(X39:X42) -> 1 | Z43: =SUM(Z39:Z42) -> 5
B45: SUPPLIES & OTHER
B46: Supplies | H46: 1 | L46: 1 | P46: 1 | T46: 1 | X46: 1 | Z46: =H46+L46+P46+T46+X46 -> 5
B47: Materials | Z47: =H47+L47+P47+T47+X47 -> 0
B48: Equipment | Z48: 0
B49: Other | Z49: 0
B50: Other | Z50: 0
Z51: =H51+L51+P51+T51+X51 -> 0
B52: TOTAL SUPPLIES & OTHER | H52: =SUM(H46:H51) -> 1 | L52: =SUM(L46:L51) -> 1 | P52: =SUM(P46:P51) -> 1 | T52: =SUM(T46:T51) -> 1 | X52: =SUM(X46:X51) -> 1 | Z52: =SUM(Z46:Z51) -> 5
A54: TOTAL OTHER EXPENSES | H54: =H43+H52 -> 2 | L54: =L43+L52 -> 2 | P54: =P43+P52 -> 2 | T54: =T43+T52 -> 2 | X54: =X43+X52 -> 2 | Z54: =Z43+Z52 -> 10
A56: TOTAL DIRECT EXPENSES | H56: =H35+H54 -> 31.235 | L56: =L35+L54 -> 32.11205 | P56: =P35+P54 -> 33.012488 | T56: =T35+T54 -> 33.948008 | X56: =X35+X54 -> 34.906916 | Z56: =Z35+Z54 -> 165.214462
A58: INDIRECT COSTS
B59: Indirect Base | C59: Rate (%)
B60: Salary, Wages & Benefits | C60: 0.5312 | H60: =ROUND(IF($B60="Salary & Wages", H24*$C60,IF($B60="Salary, Wages & Benefits",H35*$C60,IF($B60="Total Direct Costs",H56*$C60,0))),2) -> 15.53 | L60: =ROUND(IF($B60="Salary & Wages", L24*$C60,IF($B60="Salary, Wages & Benefits",L35*$C60,IF($B60="Total Direct Costs",L56*$C60,0))),2) -> 16 | P60: =ROUND(IF($B60="Salary & Wages", P24*$C60,IF($B60="Salary, Wages & Benefits",P35*$C60,IF($B60="Total Direct Costs",P56*$C60,0))),2) -> 16.47 | T60: =ROUND(IF($B60="Salary & Wages", T24*$C60,IF($B60="Salary, Wages & Benefits",T35*$C60,IF($B60="Total Direct Costs",T56*$C60,0))),2) -> 16.97 | X60: =ROUND(IF($B60="Salary & Wages", X24*$C60,IF($B60="Salary, Wages & Benefits",X35*$C60,IF($B60="Total Direct Costs",X56*$C60,0))),2) -> 17.48 | Z60: =H60+L60+P60+T60+X60 -> 82.45
A62: TOTAL BUDGET | H62: =H56+H60 -> 46.765 | L62: =L56+L60 -> 48.11205 | P62: =P56+P60 -> 49.482488 | T62: =T56+T60 -> 50.918008 | X62: =X56+X60 -> 52.386916 | Z62: =Z56+Z60 -> 247.664462

Sheet List Options (hidden)
B2: Benefits | E2: Indirect
B3: TIAA | E3: Salary & Wages
B4: SERS | E4: Salary, Wages & Benefits
B5: PSERS | E5: Total Direct Costs
B6: N/A
B7: STUDENT
